bitfinex-derivatives/quotes_SOLF0:USTF0_20260123
["timestamp","ask_amount","ask_price","bid_price","bid_amount"]
[1769194907457,30.72704243,128.76,128.72,7.05181311]
[1769194907858,30.72704243,128.76,128.65,139.30817711]
[1769194908048,30.72704243,128.76,128.66,139.29797711]
[1769194908354,30.72704243,128.76,128.65,108.9442]
[1769194908653,30.72704243,128.76,128.67,7.0022]
[1769194909160,30.72704243,128.76,128.66,139.30247711]
[1769194909352,30.72704243,128.76,128.68,7.0019]
[1769194909557,4.97222149,128.77,128.66,30.36397711]
[1769194909558,0.04962798,128.73,128.66,30.36397711]
[1769194909958,0.04962798,128.73,128.67,30.36397711]
[1769194910651,0.04962798,128.73,128.68,7.0019]
[1769194913954,30.77667041,128.73,128.67,30.36397711]
[1769194914947,30.77667041,128.73,128.67,37.36647711]
[1769194915158,30.77667041,128.73,128.67,30.36397711]
[1769194915857,30.77667041,128.73,128.66,4.97222149]
[1769194916062,30.77667041,128.73,128.68,7.002]
[1769194916260,0.04962798,128.73,128.69,30.36397711]
[1769194917660,0.04962798,128.73,128.69,37.36537711]
[1769194918059,0.04962798,128.73,128.69,30.36397711]
[1769194918262,0.04962798,128.73,128.7,7.001]
[1769194918863,30.72704243,128.76,128.7,7.001]
[1769194919062,30.72704243,128.76,128.7,7.06025763]
[1769194919464,30.72704243,128.8,128.71,37.36437711]
[1769194919764,4.97222149,128.81,128.71,37.36437711]
[1769194919765,30.72704243,128.78,128.71,37.36437711]
[1769194920156,30.72704243,128.78,128.69,7.001]
[1769194920663,30.72704243,128.76,128.68,7.0021]
[1769194920963,30.72704243,128.74,128.63,40.22143786]
[1769194921158,30.72704243,128.71,128.65,7.0034]
[1769194921359,30.72704243,128.71,128.63,40.22143786]
[1769194921870,4.97222149,128.73,128.63,9.85746075]
[1769194921871,30.77787755,128.69,128.63,9.85746075]
[1769194922865,0.05083512,128.69,128.64,31.62351413]
[1769194923759,0.05083512,128.69,128.64,38.62771413]
[1769194924065,31.34436859,128.71,128.65,31.67316869]
[1769194924464,31.34436859,128.71,128.65,38.67676869]
[1769194925059,31.34436859,128.71,128.65,31.67316869]
[1769194927069,31.34436859,128.71,128.65,33.53038161]
[1769194927470,31.34436859,128.71,128.65,40.53408161]
[1769194929069,31.34436859,128.71,128.65,38.67686869]
[1769194929266,32.2442279,128.73,128.66,37.75562476]
[1769194929863,141.1270279,128.73,128.63,40.60998551]
[1769194930069,32.2442279,128.71,128.63,40.60998551]
[1769194930268,32.29858561,128.71,128.63,40.60998551]
[1769194930760,32.2442279,128.71,128.63,40.60998551]
[1769194931062,32.2442279,128.73,128.64,35.72713933]
[1769194931265,108.8405,128.78,128.67,30.75252476]
[1769194931266,32.2442279,128.77,128.67,30.75252476]
[1769194931569,5.79610147,128.76,128.69,30.75252476]
[1769194931772,32.2442279,128.77,128.69,30.75252476]
[1769194931971,38.04095382,128.76,128.69,30.75252476]
[1769194932164,32.2442279,128.76,128.69,30.75252476]
[1769194932765,32.2442279,128.76,128.71,0.05773264]
[1769194932970,39.2420279,128.76,128.71,0.05773264]
[1769194933276,32.2442279,128.76,128.71,0.05773264]
[1769194934877,39.2425279,128.75,128.71,0.05773264]
[1769194935375,39.2425279,128.75,128.68,37.75462476]
[1769194935574,32.2442279,128.73,128.66,30.75252476]
[1769194936884,39.2441279,128.72,128.66,30.75252476]
[1769194937073,32.2442279,128.72,128.63,40.60998551]
[1769194937381,32.2442279,128.7,128.63,47.61428551]
[1769194938279,0.05807462,128.68,128.63,47.61428551]
[1769194938678,32.30230252,128.68,128.63,9.85746075]
[1769194943171,32.30230252,128.68,128.59,37.75912476]
[1769194943575,32.2442279,128.68,128.59,37.75912476]
[1769194943883,39.2466279,128.68,128.59,37.75912476]
[1769194944085,0.05402702,128.65,128.59,37.75912476]
[1769194944275,32.29825492,128.65,128.56,109.0189]
[1769194944481,32.29825492,128.65,128.51,70.22758627]
[1769194944482,4.97104371,128.6,128.51,70.22758627]
[1769194945184,4.97104371,128.6,128.48,70.22758627]
[1769194945388,0.05883904,128.57,128.48,70.22758627]
[1769194945889,113.97874371,128.58,128.48,70.22758627]
[1769194946086,4.97104371,128.56,128.48,70.22758627]
[1769194946279,0.05529277,128.54,128.48,70.22758627]
[1769194946589,0.05529277,128.54,128.45,70.22758627]
[1769194947186,114.01224371,128.54,128.45,70.22758627]
[1769194947581,0.05012523,128.51,128.45,70.22758627]
[1769194948191,0.05012523,128.51,128.43,70.22758627]
[1769194948584,114.00894371,128.55,128.43,75.19862998]
[1769194948585,4.97104371,128.55,128.43,75.19862998]
[1769194948976,0.05719591,128.48,128.43,82.21382998]
[1769194949176,0.05719591,128.48,128.43,70.22758627]
[1769194950289,0.05719591,128.48,128.4,70.22758627]
[1769194950788,7.0104,128.53,128.42,70.22758627]
[1769194951180,7.0111,128.52,128.42,77.24348627]
[1769194951386,7.0111,128.52,128.46,0.05869414]
[1769194952186,109.0435,128.54,128.46,0.05869414]
[1769194952391,114.00064371,128.56,128.46,70.28628041]
[1769194952593,109.0296,128.56,128.46,70.22758627]
[1769194953289,109.0296,128.56,128.5,0.05825623]
[1769194953594,109.0296,128.56,128.46,70.22758627]
[1769194953595,109.0351,128.55,128.46,70.22758627]
[1769194953893,0.05906439,128.52,128.46,70.22758627]
[1769194954692,0.05906439,128.52,128.43,70.22758627]
[1769194955094,114.01704371,128.54,128.43,70.22758627]
[1769194955394,7.011,128.52,128.43,70.22758627]
[1769194955896,0.05340716,128.5,128.43,77.24298627]
[1769194956093,295.89455015,128.57,128.46,4.97104371]
[1769194956395,295.89455015,128.57,128.47,70.20088269]
[1769194956695,295.89455015,128.57,128.47,77.21418269]
[1769194956893,108.985,128.61,128.49,70.20088269]
[1769194957993,7.0067,128.6,128.51,77.21218269]
[1769194958193,7.0067,128.6,128.51,70.20088269]
[1769194958597,7.0072,128.59,128.51,70.20088269]
[1769194959412,7.0063,128.61,128.51,70.20088269]
[1769194961396,7.0063,128.61,128.51,77.21198269]
[1769194961597,108.9775,128.62,128.51,70.20088269]
[1769194961793,113.94854371,128.62,128.51,70.20088269]
[1769194961999,7.0069,128.6,128.51,77.21208269]
[1769194962399,113.92994371,128.64,128.53,70.20088269]
[1769194963108,113.92994371,128.64,128.57,0.05361034]
[1769194963399,108.9647,128.63,128.57,0.05361034]
[1769194964504,7.0061,128.61,128.57,0.05361034]
[1769194964707,7.0061,128.61,128.53,70.20088269]
[1769194964901,7.06402793,128.61,128.53,70.20088269]
[1769194965206,7.0061,128.61,128.53,70.20088269]
[1769194965602,7.0061,128.61,128.5,82.1834264]
[1769194965603,108.9815,128.61,128.5,82.1834264]
[1769194966205,0.05937614,128.57,128.5,75.1719264]
[1769194966400,0.05937614,128.57,128.5,70.20088269]
[1769194967702,0.05937614,128.57,128.47,70.20088269]
[1769194968309,109.0242,128.56,128.47,70.20088269]
[1769194968605,0.05560985,128.53,128.47,70.20088269]
[1769194971711,7.06610985,128.53,128.47,70.20088269]
[1769194972206,7.06610985,128.53,128.45,70.20088269]
[1769194972207,0.05560985,128.53,128.45,70.20088269]
[1769194972711,7.0106,128.53,128.45,70.20088269]
[1769194973007,113.99524371,128.56,128.45,70.20088269]
[1769194973209,0.0518884,128.5,128.45,70.20088269]
[1769194974406,0.0518884,128.5,128.43,70.20088269]
[1769194974802,114.03234371,128.52,128.43,70.20088269]
[1769194975310,109.0575,128.53,128.43,70.20088269]
[1769194975311,114.02854371,128.53,128.43,70.20088269]
[1769194975809,114.02854371,128.53,128.46,0.05705529]
[1769194976903,7.012,128.5,128.46,0.05705529]
[1769194980212,7.0113,128.52,128.46,70.25793798]
[1769194980514,4.97104371,128.55,128.46,70.25793798]
[1769194981005,114.02094371,128.53,128.43,70.20088269]
[1769194981316,109.0409,128.54,128.43,70.20088269]
[1769194981317,114.03724371,128.51,128.43,70.20088269]
[1769194981708,0.05310182,128.49,128.43,70.20088269]
[1769194982513,0.05310182,128.49,128.43,77.21648269]
[1769194982708,4.97104371,128.53,128.45,0.05256847]
[1769194982914,109.0409,128.54,128.45,70.25196557]
[1769194983212,109.0409,128.54,128.45,70.1993971]
[1769194983915,7.0114,128.51,128.45,70.1993971]
[1769194984114,7.0114,128.51,128.48,0.04969896]
[1769194984507,69.15270928,128.56,128.48,70.24909606]
[1769194984707,39.24560142,128.6,128.52,37.87959177]
[1769194985405,39.24560142,128.6,128.55,0.05564927]
[1769194986600,39.24560142,128.63,128.55,0.05564927]
[1769194987007,38.67486324,128.61,128.55,0.05564927]
[1769194987217,38.67486324,128.61,128.51,44.03226668]
[1769194988914,45.68106324,128.61,128.51,44.03226668]
[1769194989321,45.68106324,128.61,128.52,39.06122297]
[1769194989719,0.05163108,128.57,128.52,39.06122297]
[1769194991220,38.67486324,128.61,128.54,39.06122297]
[1769194991420,38.67486324,128.61,128.53,5.02554607]
[1769194991615,38.67486324,128.61,128.53,0.05450236]
[1769194991920,38.67486324,128.61,128.53,39.06122297]
[1769194992617,45.68096324,128.61,128.56,0.05578978]
[1769194993114,38.67486324,128.61,128.56,0.05578978]
[1769194995912,7.0054,128.62,128.56,0.05578978]
[1769194997324,38.67486324,128.63,128.56,0.05578978]
[1769195000424,45.67966324,128.63,128.56,0.05578978]
[1769195003317,7.0054,128.62,128.56,0.05578978]
[1769195003623,45.68026324,128.62,128.56,0.05578978]
[1769195004829,38.67486324,128.62,128.56,0.05578978]
[1769195005928,408.27745791,128.67,128.56,51.10697066]
[1769195005929,7.0043,128.64,128.56,51.10697066]
[1769195006222,7.0043,128.64,128.57,39.06122297]
[1769195006425,45.67916324,128.64,128.57,39.06122297]
[1769195006722,38.67486324,128.64,128.57,39.06122297]
[1769195006927,38.67486324,128.64,128.59,0.056353]
[1769195008827,38.67486324,128.67,128.59,39.11757597]
[1769195009030,38.67486324,128.67,128.61,39.06122297]
[1769195009514,38.67486324,128.7,128.63,39.06122297]
[1769195009715,38.67486324,128.7,128.63,39.11886395]
[1769195009923,7.001,128.71,128.63,39.11886395]
[1769195010431,7.001,128.71,128.63,39.06122297]
[1769195010730,7.001,128.71,128.66,0.0530117]
[1769195011524,38.67486324,128.72,128.66,39.11423467]
[1769195012220,45.0257913,128.75,128.66,39.11423467]
[1769195012425,45.0257913,128.75,128.66,44.09559258]
[1769195012625,45.0257913,128.75,128.66,44.04258088]
[1769195012928,6.999,128.74,128.67,43.27125902]
[1769195013134,6.999,128.74,128.69,0.05910049]
[1769195013425,45.0257913,128.75,128.69,0.05910049]
[1769195013629,45.0257913,128.78,128.69,43.33035951]
[1769195014225,45.0257913,128.78,128.69,43.27125902]
[1769195014630,45.0257913,128.78,128.72,0.05160695]
[1769195019637,45.0257913,128.81,128.74,43.27125902]
[1769195020541,45.0257913,128.81,128.76,0.05649206]
[1769195022642,45.0257913,128.84,128.76,50.32525108]
[1769195023136,45.0257913,128.84,128.76,50.26875902]
[1769195023440,45.0257913,128.84,128.79,0.05288888]
[1769195025340,45.0257913,128.86,128.79,43.3241479]
[1769195025936,45.0257913,128.86,128.79,50.26725902]
[1769195026244,45.0257913,128.86,128.81,0.04955714]
[1769195026739,4.98135791,128.9,128.81,0.04955714]
[1769195026934,45.0257913,128.89,128.81,0.04955714]
[1769195027338,45.0257913,128.89,128.8,50.26635902]
[1769195027540,52.0165913,128.89,128.81,6.9949]
[1769195027743,45.0257913,128.89,128.84,0.05702126]
[1769195028245,52.0170913,128.88,128.8,50.26675902]
[1769195028439,45.08405835,128.88,128.8,50.26675902]
[1769195028845,45.0257913,128.88,128.81,6.9949]
[1769195029544,52.0173913,128.88,128.8,43.27125902]
[1769195029745,0.05096974,128.86,128.8,43.27125902]
[1769195030246,0.05096974,128.86,128.8,50.26665902]
[1769195031044,0.05096974,128.86,128.8,43.27125902]
[1769195032143,45.07676104,128.86,128.8,43.27125902]
[1769195032338,45.07676104,128.86,128.77,43.27125902]
[1769195032838,45.0257913,128.86,128.77,43.27125902]
[1769195033041,52.0181913,128.86,128.79,6.9961]
[1769195033243,0.0519308,128.83,128.79,50.26735902]
[1769195034549,0.0519308,128.83,128.77,50.26795902]
[1769195034851,0.0519308,128.83,128.78,45.12463886]
[1769195035246,0.0519308,128.83,128.78,52.12123886]
[1769195036251,0.0519308,128.83,128.77,1.85337984]
[1769195036444,0.0519308,128.83,128.76,45.12463886]
[1769195036445,1.90531064,128.83,128.76,45.12463886]
[1769195036843,1.85337984,128.83,128.76,45.12463886]
[1769195037155,0.05563597,128.81,128.76,45.12463886]
[1769195037451,0.05563597,128.81,128.76,52.12233886]
[1769195038043,0.05563597,128.81,128.76,50.26895902]
[1769195038654,0.05563597,128.81,128.76,52.12233886]
[1769195038950,0.05563597,128.81,128.77,6.997]
[1769195039250,52.0185913,128.86,128.77,43.32789888]
[1769195039642,52.0185913,128.86,128.77,43.27125902]
[1769195040147,52.0185913,128.86,128.79,6.996]
[1769195040456,45.0257913,128.86,128.79,43.27125902]
[1769195040748,45.0257913,128.86,128.77,43.27125902]
[1769195040953,45.0257913,128.84,128.77,43.27125902]
[1769195041149,45.07853245,128.84,128.77,43.27125902]
[1769195041353,52.0198913,128.83,128.76,6.9974]
[1769195042358,57.68568487,128.82,128.74,50.26955902]
[1769195042555,50.74333006,128.81,128.74,50.26955902]
[1769195043960,57.73853006,128.81,128.74,50.26955902]
[1769195047148,57.73853006,128.81,128.74,43.27125902]
[1769195047149,6.9958,128.8,128.74,43.27125902]
[1769195047554,57.61843951,128.8,128.74,43.27125902]
[1769195047851,57.61903951,128.79,128.72,53.66550558]
[1769195048054,0.05865719,128.78,128.72,53.66550558]
[1769195048954,0.05865719,128.78,128.74,6.9988]
[1769195052662,0.05865719,128.78,128.73,53.66550558]
[1769195053663,50.6812967,128.78,128.71,60.66550558]
[1769195054165,50.62263951,128.78,128.71,60.66550558]
[1769195054368,57.61933951,128.78,128.71,60.66550558]
[1769195054575,0.05756175,128.76,128.71,60.66550558]
[1769195055874,0.05756175,128.76,128.71,53.66550558]
[1769195056168,0.05756175,128.76,128.67,28.24842595]
[1769195056169,50.68020126,128.76,128.69,53.66550558]
[1769195056367,57.62093951,128.75,128.69,60.66680558]
[1769195056566,50.62263951,128.75,128.69,60.66680558]
[1769195057174,0.05018802,128.73,128.69,60.66680558]
[1769195057674,55.59511632,128.79,128.7,53.66550558]
[1769195057974,50.62263951,128.79,128.71,53.66550558]
[1769195058382,55.59511632,128.79,128.71,53.66550558]
[1769195058982,1.85571836,128.77,128.74,0.05482317]
[1769195059182,52.47835787,128.77,128.71,60.66600558]
[1769195059383,1.85571836,128.76,128.71,60.66600558]
[1769195059583,1.85571836,128.75,128.71,60.66600558]
[1769195059781,1.90562539,128.76,128.71,60.66600558]
[1769195059982,0.04990703,128.76,128.71,60.66600558]
[1769195061184,0.04990703,128.76,128.71,53.66550558]
[1769195061683,0.04990703,128.76,128.71,60.66590558]
[1769195062585,0.04990703,128.76,128.71,62.52162394]
[1769195062788,0.04990703,128.76,128.72,60.66520558]
[1769195062991,0.04990703,128.76,128.72,53.66550558]
[1769195065288,0.04990703,128.76,128.72,60.66540558]
[1769195066597,0.04990703,128.76,128.72,53.66550558]
[1769195067890,1.90562539,128.76,128.7,53.66550558]
[1769195068196,1.85571836,128.74,128.7,53.66550558]
[1769195068395,1.85571836,128.73,128.67,53.66550558]
[1769195068696,1.85571836,128.73,128.69,7.0015]
[1769195068892,1.85571836,128.73,128.69,60.66700558]
[1769195069193,1.85571836,128.73,128.69,53.66550558]
[1769195069395,1.85571836,128.74,128.7,0.05379761]
[1769195070194,52.47835787,128.74,128.64,53.66550558]
[1769195070395,1.85571836,128.68,128.62,53.66550558]
[1769195070602,1.85571836,128.67,128.62,53.66550558]
[1769195071692,1.90630282,128.66,128.62,53.66550558]
[1769195071891,1.85571836,128.65,128.62,53.66550558]
[1769195072091,1.85571836,128.65,128.59,54.08377698]
[1769195072493,1.90630282,128.66,128.59,54.08377698]
[1769195072789,1.85571836,128.66,128.59,61.09067698]
[1769195073402,1.85571836,128.66,128.61,54.13386897]
[1769195074798,1.85571836,128.68,128.61,55.98958733]
[1769195075301,59.48025787,128.69,128.62,1.85571836]
[1769195075502,8.85791836,128.68,128.61,55.93949534]
[1769195075700,8.85791836,128.68,128.63,0.0533952]
[1769195078306,7.0022,128.68,128.63,0.0533952]
[1769195078805,8.85841836,128.67,128.63,0.0533952]
[1769195081409,7.0027,128.67,128.63,0.0533952]
[1769195084203,61.4542166,128.68,128.63,0.0533952]
[1769195085809,59.59909824,128.67,128.63,0.0533952]
[1769195085997,52.59639824,128.67,128.63,0.0533952]
[1769195086199,59.60019824,128.65,128.59,54.08377698]
[1769195086402,61.4559166,128.65,128.59,54.08377698]
[1769195087800,61.4566166,128.64,128.57,55.93949534]
[1769195088311,7.05821963,128.62,128.57,54.08377698]
[1769195089300,0.05281963,128.62,128.57,54.08377698]
[1769195089502,54.50493623,128.62,128.55,54.08377698]
[1769195089702,54.50493623,128.62,128.55,55.93949534]
[1769195089908,54.4521166,128.62,128.55,55.93949534]
[1769195090407,52.59639824,128.62,128.56,55.93949534]
[1769195090704,7.0053,128.63,128.57,55.93949534]
[1769195091108,52.59639824,128.64,128.58,1.85571836]
[1769195091411,52.59639824,128.64,128.58,55.93949534]
[1769195091902,52.59639824,128.64,128.59,1.85571836]
[1769195092109,54.4521166,128.66,128.58,55.93949534]
[1769195092310,54.4521166,128.66,128.59,1.85571836]
[1769195093013,7.004,128.65,128.59,1.85571836]
[1769195093212,0.05129003,128.64,128.59,1.85571836]
[1769195094911,0.05129003,128.64,128.58,62.94699534]
[1769195095414,0.05129003,128.64,128.58,55.93949534]
[1769195097905,0.05129003,128.64,128.59,1.85571836]
[1769195098317,7.05559003,128.64,128.59,1.85571836]
[1769195099015,0.05129003,128.64,128.59,55.93949534]
[1769195100212,52.59639824,128.69,128.61,55.93949534]
[1769195100416,52.59639824,128.69,128.63,55.93949534]
[1769195100615,52.59639824,128.69,128.63,54.08377698]
[1769195100919,52.59639824,128.69,128.63,55.93949534]
[1769195101610,54.4521166,128.69,128.65,0.05351984]
[1769195102119,54.4521166,128.69,128.63,55.93949534]
[1769195102120,7.0022,128.68,128.63,54.08377698]
[1769195103519,58.38217125,128.66,128.6,58.85908895]
[1769195104311,56.52645289,128.66,128.6,58.85908895]
[1769195104620,0.04940057,128.64,128.61,1.85571836]
[1769195105711,58.38217125,128.68,128.61,58.91726606]
[1769195105909,7.0027,128.67,128.61,58.91726606]
[1769195106221,7.0027,128.67,128.62,58.85908895]
[1769195106807,63.52855289,128.68,128.62,58.85908895]
[1769195107409,63.52855289,128.68,128.63,1.85571836]
[1769195107410,56.52645289,128.68,128.63,1.85571836]
[1769195107623,56.52645289,128.68,128.64,0.05906342]
[1769195114324,1.85571836,128.69,128.64,59.99795297]
[1769195114524,7.0011,128.7,128.64,61.85367133]
[1769195114818,7.0016,128.69,128.64,61.85367133]
[1769195115018,7.0016,128.69,128.64,0.05906342]
[1769195115019,63.53268079,128.69,128.64,0.05906342]
[1769195115224,65.38839915,128.69,128.64,0.05906342]
[1769195115819,63.53268079,128.69,128.64,0.05906342]
[1769195116026,65.38839915,128.69,128.64,0.05906342]
[1769195116323,63.53268079,128.69,128.64,0.05906342]
[1769195118325,56.53108079,128.68,128.64,0.05906342]
[1769195118626,58.43849922,128.68,128.61,61.79673292]
[1769195118820,58.43849922,128.68,128.62,1.85784337]
[1769195119019,58.38892416,128.68,128.62,1.85784337]
[1769195119720,56.53108079,128.68,128.62,61.79673292]
[1769195119919,0.04974982,128.66,128.62,61.79673292]
[1769195120123,0.04974982,128.66,128.62,1.85784337]
[1769195120618,0.04974982,128.66,128.63,1.85784337]
[1769195121030,56.53108079,128.68,128.63,61.79673292]
[1769195121529,56.53108079,128.68,128.63,61.8501422]
[1769195121933,56.53108079,128.68,128.63,68.8548422]
[1769195123232,56.53108079,128.68,128.64,7.004]
[1769195125332,56.53108079,128.68,128.63,59.99229883]
[1769195125926,56.53108079,128.68,128.63,61.8501422]
[1769195127437,56.53108079,128.66,128.6,8.86394337]
[1769195127733,56.53108079,128.66,128.56,14.0169]
[1769195127734,56.53108079,128.62,128.56,1.85784337]
[1769195127934,1.85784337,128.61,128.55,59.93888955]
[1769195128242,58.38892416,128.61,128.55,59.93888955]
[1769195128936,0.04903342,128.59,128.55,59.93888955]
[1769195129726,0.04903342,128.59,128.53,61.79673292]
[1769195129931,58.38892416,128.58,128.51,59.93888955]
[1769195130137,58.38892416,128.58,128.51,61.79673292]
[1769195130737,0.04938779,128.56,128.51,61.79673292]
[1769195131442,0.04938779,128.56,128.52,1.85784337]
[1769195132043,59.68311233,128.59,128.52,68.80733292]
[1769195132340,57.82526896,128.59,128.46,9.6615786]
[1769195132543,59.68311233,128.51,128.44,1.85784337]
[1769195132736,59.68311233,128.51,128.43,61.09942766]
[1769195132737,1.85784337,128.5,128.43,62.95727103]
[1769195132931,66.69491233,128.51,128.44,1.85784337]
[1769195133238,59.68311233,128.5,128.43,62.95727103]
[1769195133540,57.82526896,128.5,128.44,1.85784337]
[1769195133835,59.68311233,128.5,128.43,62.95727103]
[1769195134030,59.68311233,128.5,128.43,61.09942766]
[1769195134535,57.82526896,128.5,128.44,1.85784337]
[1769195136735,59.68311233,128.5,128.43,62.95727103]
[1769195137042,59.68311233,128.5,128.46,0.04923536]
[1769195137242,57.82526896,128.5,128.46,0.04923536]
[1769195137542,1.85784337,128.51,128.46,0.04923536]
[1769195137743,57.82526896,128.52,128.46,0.04923536]
[1769195137930,57.82526896,128.57,128.47,62.95727103]
[1769195138135,59.68311233,128.55,128.48,1.85784337]
[1769195138841,59.68311233,128.55,128.48,62.95727103]
[1769195139029,57.82526896,128.57,128.51,1.85784337]
[1769195139234,57.82526896,128.57,128.5,62.95727103]
[1769195139438,59.68311233,128.57,128.5,62.95727103]
[1769195139837,59.68311233,128.56,128.49,1.85784337]
[1769195140032,59.68311233,128.55,128.48,1.85784337]
[1769195140432,57.82526896,128.51,128.44,61.09942766]
[1769195140636,59.68311233,128.49,128.42,62.95727103]
[1769195140939,57.82526896,128.49,128.42,61.09942766]
[1769195141143,57.82526896,128.51,128.44,61.09942766]
[1769195141341,57.82526896,128.55,128.46,61.09942766]
[1769195141648,57.82526896,128.55,128.47,61.09942766]
[1769195141840,0.05229025,128.52,128.47,61.09942766]
[1769195142842,57.82526896,128.55,128.49,7.0121]
[1769195144140,57.82526896,128.55,128.49,61.09942766]
[1769195144342,57.82526896,128.58,128.51,0.05432386]
[1769195145048,57.82526896,128.58,128.49,68.11162766]
[1769195145249,57.82526896,128.58,128.53,0.05068372]
[1769195146544,57.82526896,128.58,128.49,61.09942766]
[1769195146749,57.82526896,128.56,128.49,61.09942766]
[1769195148052,0.05654746,128.54,128.49,61.09942766]
[1769195148244,57.82526896,128.58,128.51,61.14876534]
[1769195149852,57.82526896,128.6,128.51,68.15986534]
[1769195150245,57.82526896,128.6,128.51,68.11052766]
[1769195150774,62.81757291,128.63,128.54,0.05737916]
[1769195151152,69.82277291,128.63,128.54,0.05737916]
[1769195151352,62.81757291,128.63,128.53,7.0101]
[1769195151655,62.81757291,128.63,128.57,0.05202087]
[1769195151860,62.81757291,128.63,128.53,7.0101]
[1769195152049,0.05462681,128.59,128.53,7.0101]
[1769195153048,0.05462681,128.59,128.51,68.11032766]
[1769195153254,57.87989577,128.59,128.51,68.11032766]
[1769195153452,57.82526896,128.59,128.51,68.11032766]
[1769195153669,57.82526896,128.62,128.53,61.09942766]
[1769195154165,57.82526896,128.62,128.54,61.1511221]
[1769195154451,57.82526896,128.65,128.56,61.09942766]
[1769195154858,64.82826896,128.67,128.58,61.09942766]
[1769195155261,64.82826896,128.67,128.59,0.05548631]
[1769195155558,64.82826896,128.67,128.59,61.15491397]
[1769195155753,64.82826896,128.67,128.59,61.09942766]
[1769195155951,64.82826896,128.67,128.59,68.10612766]
[1769195156156,64.82826896,128.67,128.62,0.05482627]
[1769195157552,57.82526896,128.67,128.62,0.05482627]
[1769195158567,57.82526896,128.7,128.62,0.05482627]
[1769195159160,57.82526896,128.7,128.61,61.09942766]
[1769195159353,57.82526896,128.7,128.65,0.05900419]
[1769195160258,57.82526896,128.69,128.65,0.05900419]
[1769195160661,57.82526896,128.69,128.62,61.09942766]
[1769195160862,1.85813162,128.68,128.62,61.09942766]
[1769195161063,0.05749279,128.68,128.62,62.95755928]
[1769195161262,59.74089337,128.68,128.62,61.09942766]
[1769195162061,57.88276175,128.68,128.62,61.09942766]
[1769195162268,57.88276175,128.68,128.63,1.85813162]
[1769195162465,57.88276175,128.68,128.62,68.10452766]
[1769195164062,57.88276175,128.68,128.62,69.96265928]
[1769195166364,57.88276175,128.68,128.63,8.86283162]
[1769195166664,0.05749279,128.68,128.65,62.22056634]
[1769195166966,58.92792792,128.74,128.67,63.0240041]
[1769195167266,57.0697963,128.74,128.68,1.85813162]
[1769195167965,57.0697963,128.74,128.67,63.0240041]
[1769195168159,57.0697963,128.74,128.7,0.05274952]
[1769195168160,58.92792792,128.74,128.7,0.05274952]
[1769195170264,64.0674963,128.77,128.7,0.05274952]
[1769195170466,58.92792792,128.76,128.7,0.05274952]
[1769195171169,1.85813162,128.75,128.7,0.05274952]
[1769195171559,58.92792792,128.75,128.7,0.05274952]
[1769195171761,58.92792792,128.74,128.7,0.05274952]
[1769195172367,58.92792792,128.74,128.68,68.16747248]
[1769195172555,58.92792792,128.74,128.71,0.04947763]
[1769195172760,0.0505565,128.72,128.68,68.16747248]
[1769195172955,0.0505565,128.72,128.69,7.0015]
[1769195177475,58.92792792,128.76,128.7,7.0008]
[1769195177976,58.92792792,128.76,128.69,63.0240041]
[1769195178567,57.0697963,128.76,128.7,1.85813162]
[1769195178768,13.9884,128.83,128.72,6.9998]
[1769195178769,58.92792792,128.78,128.72,6.9998]
[1769195178961,58.92510286,128.78,128.72,6.9998]
[1769195179375,57.0697963,128.78,128.72,6.9998]
[1769195179574,58.92510286,128.78,128.72,6.9998]
[1769195179765,58.92510286,128.78,128.74,0.05362892]
[1769195179967,58.92510286,128.81,128.74,0.05362892]
[1769195180167,58.92510286,128.8,128.74,0.05362892]
[1769195180672,58.92510286,128.8,128.73,1.85530656]
[1769195180873,57.0697963,128.8,128.76,0.05304341]
[1769195184376,57.0697963,128.8,128.74,6.9988]
[1769195184674,0.04952439,128.79,128.74,6.9988]
[1769195185175,0.04952439,128.79,128.75,6.9983]
[1769195185379,57.11932069,128.79,128.72,61.16587248]
[1769195187878,57.11932069,128.79,128.74,6.9988]
[1769195188283,57.11932069,128.79,128.72,61.16587248]
[1769195189880,57.11932069,128.79,128.73,6.9993]
[1769195190381,64.11552069,128.79,128.73,6.9993]
[1769195190781,0.04952439,128.79,128.74,68.16437248]
[1769195191382,57.11932069,128.79,128.72,61.16587248]
[1769195191881,57.0697963,128.79,128.72,61.16587248]
[1769195192274,0.04899847,128.77,128.72,61.16587248]
[1769195192974,0.04899847,128.77,128.73,6.9993]
[1769195198983,0.04899847,128.77,128.73,70.06065737]
[1769195199986,0.04899847,128.77,128.73,63.06135737]
[1769195200581,0.04899847,128.77,128.73,70.06075737]
[1769195201076,0.04899847,128.77,128.73,63.06135737]
[1769195201282,0.04899847,128.77,128.74,6.9988]
[1769195201788,0.04899847,128.77,128.73,71.91579625]
[1769195203982,0.04899847,128.77,128.73,70.06065737]
[1769195206690,1.85513888,128.8,128.75,70.05965737]
[1769195207092,63.10654734,128.8,128.75,63.06135737]
[1769195207294,1.85513888,128.79,128.74,0.05139257]
[1769195207486,1.85513888,128.79,128.74,63.11274994]
[1769195207889,1.85513888,128.79,128.74,70.11154994]
[1769195209594,63.10654734,128.8,128.75,6.9983]